[Event "*** SCC Grand Prix: Titled Tuesday Blitz"]
[Site "Chess.com"]
[Date "2020.06.02"]
[Round "9"]
[White "larisakalinina"]
[Black "MacDaddyMac"]
[Result "0-1"]
[WhiteElo "1985"]
[BlackElo "2278"]
[TimeControl "180+1"]
[EndTime "11:48:44 PDT"]
[Termination "MacDaddyMac won on time"]

1. e4 {[%clk 0:03:00.9]} 1... e6 {[%clk 0:03:00]} 2. d3 {[%clk 0:02:59.5]} 2...
d5 {[%clk 0:03:00.9]} 3. Nd2 {[%clk 0:02:58.5]} 3... Nf6 {[%clk 0:03:00.2]} 4.
g3 {[%clk 0:02:55.9]} 4... c5 {[%clk 0:02:59.3]} 5. Bg2 {[%clk 0:02:54.9]} 5...
Nc6 {[%clk 0:02:58.9]} 6. Qe2 {[%clk 0:02:52.8]} 6... Be7 {[%clk 0:02:58.5]} 7.
e5 {[%clk 0:02:51.1]} 7... Nd7 {[%clk 0:02:58.3]} 8. Ngf3 {[%clk 0:02:49.5]}
8... Qc7 {[%clk 0:02:54.3]} 9. c4 {[%clk 0:02:44.8]} 9... d4 {[%clk 0:02:46.7]}
10. Ne4 {[%clk 0:02:41.2]} 10... Ncxe5 {[%clk 0:02:44.2]} 11. Nxe5 {[%clk
0:02:39.7]} 11... Nxe5 {[%clk 0:02:41]} 12. Bf4 {[%clk 0:02:39.8]} 12... Qa5+
{[%clk 0:02:40.5]} 13. Bd2 {[%clk 0:02:37.9]} 13... Qb6 {[%clk 0:02:40.1]} 14.
b3 {[%clk 0:02:36.3]} 14... Bd7 {[%clk 0:02:38.7]} 15. O-O {[%clk 0:02:35.5]}
15... h6 {[%clk 0:02:27.3]} 16. Bf4 {[%clk 0:02:32.6]} 16... Ng6 {[%clk
0:02:26.7]} 17. Bd2 {[%clk 0:02:26.5]} 17... f5 {[%clk 0:02:20.7]} 18. Qh5
{[%clk 0:02:21.2]} 18... e5 {[%clk 0:01:44.9]} 19. f4 {[%clk 0:02:07.9]} 19...
fxe4 {[%clk 0:01:39.2]} 20. Bxe4 {[%clk 0:02:03.7]} 20... O-O {[%clk 0:01:37.7]}
21. Bxg6 {[%clk 0:01:58.4]} 21... exf4 {[%clk 0:01:34.9]} 22. Bxf4 {[%clk
0:01:56.4]} 22... Rf6 {[%clk 0:01:30.3]} 23. Be4 {[%clk 0:01:54.8]} 23... Raf8
{[%clk 0:01:26.6]} 24. Be5 {[%clk 0:01:42.3]} 24... Rxf1+ {[%clk 0:01:25.4]} 25.
Rxf1 {[%clk 0:01:42.7]} 25... Rxf1+ {[%clk 0:01:22.4]} 26. Kxf1 {[%clk 0:01:43]}
26... Bc6 {[%clk 0:01:18.9]} 27. Bf5 {[%clk 0:01:24.5]} 27... Qd8 {[%clk
0:00:58.8]} 28. Qg6 {[%clk 0:01:22.3]} 28... Bf6 {[%clk 0:00:58.4]} 29. Qh7+
{[%clk 0:01:11]} 29... Kf8 {[%clk 0:00:46.2]} 30. Qh8+ {[%clk 0:01:08.7]} 30...
Kf7 {[%clk 0:00:45.7]} 31. Qxd8 {[%clk 0:00:59.6]} 31... Bxd8 {[%clk 0:00:46.6]}
32. Ke2 {[%clk 0:00:55.2]} 32... Bf6 {[%clk 0:00:42.2]} 33. Bd6 {[%clk
0:00:53.5]} 33... Be7 {[%clk 0:00:41.9]} 34. Bb8 {[%clk 0:00:52.4]} 34... Kf6
{[%clk 0:00:36.7]} 35. Bg4 {[%clk 0:00:48.5]} 35... a6 {[%clk 0:00:35.8]} 36.
Bf3 {[%clk 0:00:45.8]} 36... Bxf3+ {[%clk 0:00:28.5]} 37. Kxf3 {[%clk
0:00:46.2]} 37... Ke6 {[%clk 0:00:29]} 38. Ke4 {[%clk 0:00:45]} 38... g6 {[%clk
0:00:28.7]} 39. Bf4 {[%clk 0:00:42.7]} 39... h5 {[%clk 0:00:27.6]} 40. h3 {[%clk
0:00:36.7]} 40... g5 {[%clk 0:00:13.3]} 41. Bb8 {[%clk 0:00:35.6]} 41... Bf6
{[%clk 0:00:12.4]} 42. g4 {[%clk 0:00:33.3]} 42... hxg4 {[%clk 0:00:11.8]} 43.
hxg4 {[%clk 0:00:33.5]} 43... Be7 {[%clk 0:00:12.7]} 44. Be5 {[%clk 0:00:31.6]}
44... Bf8 {[%clk 0:00:12]} 45. Bc7 {[%clk 0:00:30.2]} 45... Be7 {[%clk
0:00:12.3]} 46. a3 {[%clk 0:00:29]} 46... Bf6 {[%clk 0:00:11.8]} 47. b4 {[%clk
0:00:27.1]} 47... cxb4 {[%clk 0:00:11.3]} 48. axb4 {[%clk 0:00:27.4]} 48... Be7
{[%clk 0:00:11.8]} 49. b5 {[%clk 0:00:22.8]} 49... axb5 {[%clk 0:00:11.8]} 50.
cxb5 {[%clk 0:00:22.6]} 50... Bc5 {[%clk 0:00:12.2]} 51. Bd8 {[%clk 0:00:20.6]}
51... Ba3 {[%clk 0:00:04.7]} 52. Bxg5 {[%clk 0:00:20.4]} 52... Bb2 {[%clk
0:00:05.2]} 53. Bd8 {[%clk 0:00:19.5]} 53... Kd6 {[%clk 0:00:05.7]} 54. b6
{[%clk 0:00:16.8]} 54... Kc5 {[%clk 0:00:04.2]} 55. g5 {[%clk 0:00:16.2]} 55...
Bc1 {[%clk 0:00:04.6]} 56. g6 {[%clk 0:00:15.8]} 56... Bh6 {[%clk 0:00:04.6]}
57. Kf5 {[%clk 0:00:14.1]} 57... Kc6 {[%clk 0:00:04.7]} 58. Kf6 {[%clk
0:00:13.5]} 58... Kc5 {[%clk 0:00:04.1]} 59. g7 {[%clk 0:00:13.4]} 59... Bxg7+
{[%clk 0:00:04.8]} 60. Kxg7 {[%clk 0:00:13.4]} 60... Kb4 {[%clk 0:00:05.7]} 61.
Kf6 {[%clk 0:00:12.2]} 61... Kc3 {[%clk 0:00:06.6]} 62. Ke6 {[%clk 0:00:09.9]}
62... Kxd3 {[%clk 0:00:07.5]} 63. Kd7 {[%clk 0:00:09.5]} 63... Kc4 {[%clk
0:00:07.5]} 64. Kc7 {[%clk 0:00:09]} 64... d3 {[%clk 0:00:08.4]} 65. Bg5 {[%clk
0:00:08.4]} 65... Kd5 {[%clk 0:00:08.3]} 66. Kxb7 {[%clk 0:00:07.4]} 66... Ke6
{[%clk 0:00:09.2]} 67. Kc7 {[%clk 0:00:07]} 67... Kf5 {[%clk 0:00:10.1]} 68. Bd2
{[%clk 0:00:06]} 68... Ke4 {[%clk 0:00:11]} 69. b7 {[%clk 0:00:05.8]} 69... Kf3
{[%clk 0:00:11.9]} 70. b8=Q {[%clk 0:00:05.5]} 70... Ke2 {[%clk 0:00:12.8]} 71.
Ba5 {[%clk 0:00:04.8]} 71... Kd1 {[%clk 0:00:13.7]} 72. Qb1+ {[%clk 0:00:04.2]}
72... Ke2 {[%clk 0:00:13.7]} 73. Qb2+ {[%clk 0:00:03.7]} 73... Ke3 {[%clk
0:00:14.6]} 74. Qd2+ {[%clk 0:00:03.6]} 74... Kd4 {[%clk 0:00:15.5]} 75. Kd6
{[%clk 0:00:02.5]} 75... Kc4 {[%clk 0:00:16.4]} 76. Qc3+ {[%clk 0:00:01.4]}
76... Kb5 {[%clk 0:00:16.6]} 0-1

[Event "*** SCC Grand Prix: Titled Tuesday Blitz"]
[Site "Chess.com"]
[Date "2020.06.02"]
[Round "9"]
[White "BlackBoarder"]
[Black "yamalchess"]
[Result "1/2-1/2"]
[WhiteElo "2620"]
[BlackElo "2466"]
[TimeControl "180+1"]
[EndTime "11:48:47 PDT"]
[Termination "Game drawn - insufficient material"]

1. e4 {[%clk 0:02:47.9]} 1... e5 {[%clk 0:02:59.3]} 2. Nf3 {[%clk 0:02:47.6]}
2... Nc6 {[%clk 0:02:59.8]} 3. d4 {[%clk 0:02:47.7]} 3... exd4 {[%clk
0:02:59.2]} 4. Bc4 {[%clk 0:02:48.2]} 4... Nf6 {[%clk 0:02:58.9]} 5. O-O {[%clk
0:02:44]} 5... Nxe4 {[%clk 0:02:58.6]} 6. Re1 {[%clk 0:02:44.5]} 6... d5 {[%clk
0:02:58.9]} 7. Bxd5 {[%clk 0:02:44.9]} 7... Qxd5 {[%clk 0:02:59.5]} 8. Nc3
{[%clk 0:02:45.2]} 8... Qa5 {[%clk 0:02:59.9]} 9. Nxe4 {[%clk 0:02:45.7]} 9...
Be6 {[%clk 0:03:00.4]} 10. Neg5 {[%clk 0:02:46.3]} 10... O-O-O {[%clk
0:03:00.5]} 11. Nxe6 {[%clk 0:02:46.8]} 11... fxe6 {[%clk 0:03:00.7]} 12. Rxe6
{[%clk 0:02:47.5]} 12... Bd6 {[%clk 0:03:00.8]} 13. Bg5 {[%clk 0:02:47.8]} 13...
Rde8 {[%clk 0:03:01.3]} 14. Qe2 {[%clk 0:02:48.1]} 14... Kd7 {[%clk 0:03:00.2]}
15. Rxe8 {[%clk 0:02:47.5]} 15... Rxe8 {[%clk 0:02:59.8]} 16. Qd3 {[%clk
0:02:48.2]} 16... g6 {[%clk 0:03:00]} 17. Bd2 {[%clk 0:02:47.1]} 17... Qf5
{[%clk 0:02:58.5]} 18. Qxf5+ {[%clk 0:02:23.3]} 18... gxf5 {[%clk 0:02:57.6]}
19. Rd1 {[%clk 0:02:22.9]} 19... b5 {[%clk 0:02:39.6]} 20. Kf1 {[%clk
0:02:06.1]} 20... Be5 {[%clk 0:01:51.7]} 21. Be3 {[%clk 0:01:50.1]} 21... Kc8
{[%clk 0:01:38]} 22. Nxe5 {[%clk 0:01:41.8]} 22... Rxe5 {[%clk 0:01:35.3]} 23.
Bxd4 {[%clk 0:01:41.9]} 23... Rd5 {[%clk 0:01:35]} 24. c3 {[%clk 0:01:41.9]}
24... b4 {[%clk 0:01:32.1]} 25. Ke2 {[%clk 0:01:40.8]} 25... a5 {[%clk
0:01:31.8]} 26. Kd3 {[%clk 0:01:19.8]} 26... Ne5+ {[%clk 0:01:24.9]} 27. Kc2
{[%clk 0:01:19.7]} 27... bxc3 {[%clk 0:01:10.9]} 28. Bxc3 {[%clk 0:01:19.2]}
28... Rc5 {[%clk 0:00:56.1]} 29. h3 {[%clk 0:01:00]} 29... Nc6 {[%clk 0:00:52]}
30. Kb3 {[%clk 0:00:56.9]} 30... f4 {[%clk 0:00:43.2]} 31. Rd3 {[%clk
0:00:42.3]} 31... Rg5 {[%clk 0:00:40.2]} 32. g3 {[%clk 0:00:41]} 32... fxg3
{[%clk 0:00:39.9]} 33. Rxg3 {[%clk 0:00:39]} 33... Rf5 {[%clk 0:00:35.7]} 34.
Rg7 {[%clk 0:00:38.5]} 34... h5 {[%clk 0:00:33.8]} 35. Rh7 {[%clk 0:00:36.2]}
35... Kb7 {[%clk 0:00:31.4]} 36. Kc4 {[%clk 0:00:27]} 36... Rf4+ {[%clk
0:00:29.5]} 37. Kd5 {[%clk 0:00:15.8]} 37... Rh4 {[%clk 0:00:22.9]} 38. Rf7
{[%clk 0:00:10.5]} 38... Rxh3 {[%clk 0:00:21.6]} 39. f4 {[%clk 0:00:10.9]} 39...
h4 {[%clk 0:00:19.5]} 40. f5 {[%clk 0:00:11]} 40... Rf3 {[%clk 0:00:18.6]} 41.
f6 {[%clk 0:00:11]} 41... h3 {[%clk 0:00:18.7]} 42. Rh7 {[%clk 0:00:11.4]} 42...
Nd8 {[%clk 0:00:17]} 43. Ke4 {[%clk 0:00:11.2]} 43... Rf2 {[%clk 0:00:15.8]} 44.
Rxh3 {[%clk 0:00:10.5]} 44... Ne6 {[%clk 0:00:14.5]} 45. Rg3 {[%clk 0:00:10.8]}
45... a4 {[%clk 0:00:13.1]} 46. Kd5 {[%clk 0:00:09.6]} 46... Nf4+ {[%clk
0:00:12.5]} 47. Ke5 {[%clk 0:00:06.5]} 47... a3 {[%clk 0:00:11.2]} 48. bxa3
{[%clk 0:00:04.6]} 48... Ne2 {[%clk 0:00:11]} 49. Re3 {[%clk 0:00:03.5]} 49...
Nxc3 {[%clk 0:00:09]} 50. Rxc3 {[%clk 0:00:03.5]} 50... Rxa2 {[%clk 0:00:09.6]}
51. Ke6 {[%clk 0:00:03.5]} 51... Re2+ {[%clk 0:00:09.4]} 52. Kd7 {[%clk
0:00:04.1]} 52... Rd2+ {[%clk 0:00:08.5]} 53. Ke7 {[%clk 0:00:04.3]} 53... Re2+
{[%clk 0:00:08.8]} 54. Kf8 {[%clk 0:00:04.6]} 54... Rf2 {[%clk 0:00:08.5]} 55.
f7 {[%clk 0:00:05]} 55... Kb6 {[%clk 0:00:08.6]} 56. Rc4 {[%clk 0:00:03]} 56...
c5 {[%clk 0:00:08.2]} 57. Kg7 {[%clk 0:00:03.1]} 57... Kb5 {[%clk 0:00:07.8]}
58. Rg4 {[%clk 0:00:01.9]} 58... c4 {[%clk 0:00:07.3]} 59. f8=Q {[%clk
0:00:02.2]} 59... Rxf8 {[%clk 0:00:06.9]} 60. Kxf8 {[%clk 0:00:03.1]} 60... c3
{[%clk 0:00:07.2]} 61. Rg2 {[%clk 0:00:02.4]} 61... Ka4 {[%clk 0:00:07.3]} 62.
Rc2 {[%clk 0:00:02]} 62... Kb3 {[%clk 0:00:07.5]} 63. Rc1 {[%clk 0:00:02.4]}
63... Kb2 {[%clk 0:00:07.8]} 64. Rf1 {[%clk 0:00:02]} 64... Kxa3 {[%clk
0:00:07.6]} 65. Ke7 {[%clk 0:00:02.4]} 65... Kb2 {[%clk 0:00:07.9]} 66. Kd6
{[%clk 0:00:02.9]} 66... c2 {[%clk 0:00:08.4]} 67. Rf2 {[%clk 0:00:03.2]} 67...
Kb1 {[%clk 0:00:08.2]} 68. Rf1+ {[%clk 0:00:03.6]} 68... c1=Q {[%clk 0:00:08.2]}
69. Rxc1+ {[%clk 0:00:04.2]} 69... Kxc1 {[%clk 0:00:08.7]} 1/2-1/2

[Event "*** SCC Grand Prix: Titled Tuesday Blitz"]
[Site "Chess.com"]
[Date "2020.06.02"]
[Round "9"]
[White "chessfrendz"]
[Black "bugbug01052018"]
[Result "0-1"]
[WhiteElo "2364"]
[BlackElo "2220"]
[TimeControl "180+1"]
[EndTime "11:48:54 PDT"]
[Termination "bugbug01052018 won on time"]

1. d4 {[%clk 0:03:00.9]} 1... Nf6 {[%clk 0:02:55.1]} 2. g3 {[%clk 0:03:00.8]}
2... e6 {[%clk 0:02:55.5]} 3. Bg2 {[%clk 0:03:00.7]} 3... c5 {[%clk 0:02:55]} 4.
Nf3 {[%clk 0:02:52.1]} 4... Nc6 {[%clk 0:02:53.5]} 5. O-O {[%clk 0:02:51.2]}
5... Be7 {[%clk 0:02:50.5]} 6. b3 {[%clk 0:02:50.3]} 6... O-O {[%clk 0:02:48.8]}
7. Bb2 {[%clk 0:02:49.5]} 7... cxd4 {[%clk 0:02:42.7]} 8. Nxd4 {[%clk
0:02:48.3]} 8... d5 {[%clk 0:02:42.5]} 9. c4 {[%clk 0:02:45.2]} 9... dxc4 {[%clk
0:02:37.6]} 10. Nxc6 {[%clk 0:02:44.1]} 10... bxc6 {[%clk 0:02:36.7]} 11. Qxd8
{[%clk 0:02:40.6]} 11... Rxd8 {[%clk 0:02:36]} 12. bxc4 {[%clk 0:02:36.2]} 12...
Rb8 {[%clk 0:02:33.4]} 13. Be5 {[%clk 0:02:34.2]} 13... Bd6 {[%clk 0:02:28.7]}
14. Rd1 {[%clk 0:02:32.9]} 14... Ne8 {[%clk 0:02:25.4]} 15. c5 {[%clk
0:02:26.1]} 15... Bxe5 {[%clk 0:02:20.7]} 16. Rxd8 {[%clk 0:02:24.6]} 16... Kf8
{[%clk 0:02:15.9]} 17. Bxc6 {[%clk 0:02:22.9]} 17... Bd7 {[%clk 0:02:08]} 18.
Rxb8 {[%clk 0:02:18.7]} 18... Bxc6 {[%clk 0:02:05.9]} 19. Nc3 {[%clk 0:01:43.3]}
19... Bxb8 {[%clk 0:02:03.2]} 20. Rb1 {[%clk 0:01:42]} 20... Be5 {[%clk
0:02:01.8]} 21. Nb5 {[%clk 0:01:41.3]} 21... a6 {[%clk 0:01:55.6]} 22. Na7
{[%clk 0:01:38.9]} 22... Bd5 {[%clk 0:01:55.2]} 23. a3 {[%clk 0:01:26.1]} 23...
Bd4 {[%clk 0:01:50.3]} 24. Rb8 {[%clk 0:01:18.5]} 24... Bxc5 {[%clk 0:01:42.5]}
25. Nc8 {[%clk 0:01:15.8]} 25... f6 {[%clk 0:01:34.8]} 26. Nb6 {[%clk 0:01:13]}
26... Bd6 {[%clk 0:01:26]} 27. Rc8 {[%clk 0:01:01]} 27... Bb7 {[%clk 0:01:11.3]}
28. Rc3 {[%clk 0:01:00.1]} 28... Nc7 {[%clk 0:00:59.8]} 29. a4 {[%clk
0:00:51.5]} 29... Nd5 {[%clk 0:00:42.7]} 30. Rb3 {[%clk 0:00:45.8]} 30... Bc6
{[%clk 0:00:30.9]} 31. a5 {[%clk 0:00:41.7]} 31... Bb5 {[%clk 0:00:20.3]} 32.
Nxd5 {[%clk 0:00:37.2]} 32... exd5 {[%clk 0:00:20.2]} 33. e3 {[%clk 0:00:36.8]}
33... Ke7 {[%clk 0:00:19.7]} 34. f4 {[%clk 0:00:33]} 34... Bc5 {[%clk
0:00:18.5]} 35. Kf2 {[%clk 0:00:32]} 35... Kd6 {[%clk 0:00:18.5]} 36. Kf3 {[%clk
0:00:30.4]} 36... h5 {[%clk 0:00:16.8]} 37. Rb2 {[%clk 0:00:28.4]} 37... Bc6
{[%clk 0:00:11.6]} 38. Ke2 {[%clk 0:00:26.9]} 38... Bb5+ {[%clk 0:00:10.1]} 39.
Kf3 {[%clk 0:00:26.8]} 39... Bc6 {[%clk 0:00:10.2]} 40. Ke2 {[%clk 0:00:26.8]}
40... Kc7 {[%clk 0:00:08.6]} 41. Rb3 {[%clk 0:00:22]} 41... Bb5+ {[%clk
0:00:07]} 42. Kf3 {[%clk 0:00:21.1]} 42... Bc4 {[%clk 0:00:07.3]} 43. Rb2 {[%clk
0:00:20.5]} 43... Ba3 {[%clk 0:00:06.6]} 44. Rc2 {[%clk 0:00:20]} 44... Bb4
{[%clk 0:00:06.5]} 45. e4 {[%clk 0:00:19.8]} 45... Kd6 {[%clk 0:00:04.2]} 46.
exd5 {[%clk 0:00:18.6]} 46... Kxd5 {[%clk 0:00:04.7]} 47. Rb2 {[%clk 0:00:16.3]}
47... Bxa5 {[%clk 0:00:04.7]} 48. f5 {[%clk 0:00:14.7]} 48... Bc3 {[%clk
0:00:04]} 49. Rc2 {[%clk 0:00:13.9]} 49... Kd4 {[%clk 0:00:03.4]} 50. Rc1 {[%clk
0:00:13.8]} 50... Kd3 {[%clk 0:00:03.1]} 51. Rd1+ {[%clk 0:00:13.3]} 51... Bd2
{[%clk 0:00:03.6]} 52. Ra1 {[%clk 0:00:11.8]} 52... Bd5+ {[%clk 0:00:03.5]} 53.
Kf2 {[%clk 0:00:11.2]} 53... Be3+ {[%clk 0:00:01.7]} 54. Kf1 {[%clk 0:00:11.3]}
54... Bc4 {[%clk 0:00:02.3]} 55. Ra3+ {[%clk 0:00:09.8]} 55... Kd4+ {[%clk
0:00:02.7]} 56. Kg2 {[%clk 0:00:09.5]} 56... a5 {[%clk 0:00:03.6]} 57. Rxa5
{[%clk 0:00:08.3]} 57... Bd5+ {[%clk 0:00:04.5]} 58. Kh3 {[%clk 0:00:06.8]}
58... Bd2 {[%clk 0:00:05.4]} 59. Ra4+ {[%clk 0:00:05.7]} 59... Ke5 {[%clk
0:00:05.9]} 60. Kh4 {[%clk 0:00:04.7]} 60... Kxf5 {[%clk 0:00:06.3]} 61. Kxh5
{[%clk 0:00:04.2]} 61... Bf3+ {[%clk 0:00:06.6]} 62. Kh4 {[%clk 0:00:04.1]}
62... g5+ {[%clk 0:00:05.4]} 63. Kh3 {[%clk 0:00:03.7]} 63... g4+ {[%clk
0:00:05.8]} 64. Kh4 {[%clk 0:00:03.7]} 64... Bg5+ {[%clk 0:00:05.6]} 65. Kh5
{[%clk 0:00:03.9]} 65... Be3 {[%clk 0:00:06.1]} 66. Ra5+ {[%clk 0:00:02.5]}
66... Ke4 {[%clk 0:00:06]} 67. Kg6 {[%clk 0:00:01.9]} 67... Bg1 {[%clk
0:00:05.7]} 68. Ra4+ {[%clk 0:00:01.4]} 68... Kd3 {[%clk 0:00:05.6]} 0-1

[Event "*** SCC Grand Prix: Titled Tuesday Blitz"]
[Site "Chess.com"]
[Date "2020.06.02"]
[Round "9"]
[White "Jeffinho023"]
[Black "maciek_92"]
[Result "1-0"]
[WhiteElo "2589"]
[BlackElo "2771"]
[TimeControl "180+1"]
[EndTime "11:48:57 PDT"]
[Termination "Jeffinho023 won on time"]

1. d4 {[%clk 0:03:00.9]} 1... f5 {[%clk 0:02:56.2]} 2. Nc3 {[%clk 0:03:00.2]}
2... d5 {[%clk 0:02:47.6]} 3. Bg5 {[%clk 0:02:57.7]} 3... Nf6 {[%clk 0:02:40.8]}
4. Bxf6 {[%clk 0:02:56.6]} 4... exf6 {[%clk 0:02:35.2]} 5. e3 {[%clk 0:02:55.5]}
5... c6 {[%clk 0:02:35.1]} 6. Bd3 {[%clk 0:02:54.3]} 6... Be6 {[%clk 0:02:32.5]}
7. Qf3 {[%clk 0:02:53.6]} 7... Bd6 {[%clk 0:02:32.7]} 8. Nge2 {[%clk 0:02:53.1]}
8... g6 {[%clk 0:02:31.5]} 9. h3 {[%clk 0:02:50.1]} 9... h5 {[%clk 0:02:14.5]}
10. O-O-O {[%clk 0:02:33.7]} 10... Nd7 {[%clk 0:02:13.1]} 11. g4 {[%clk
0:02:33.3]} 11... fxg4 {[%clk 0:01:54.8]} 12. hxg4 {[%clk 0:02:24.9]} 12... Bxg4
{[%clk 0:01:53.6]} 13. Qxg4 {[%clk 0:02:21]} 13... hxg4 {[%clk 0:01:52.8]} 14.
Rxh8+ {[%clk 0:02:13.7]} 14... Nf8 {[%clk 0:01:51.4]} 15. Bxg6+ {[%clk 0:01:58]}
15... Kd7 {[%clk 0:01:51.5]} 16. Bf5+ {[%clk 0:01:56.4]} 16... Kc7 {[%clk
0:01:51.7]} 17. Bxg4 {[%clk 0:01:56.1]} 17... Qe7 {[%clk 0:01:45.4]} 18. Bf5
{[%clk 0:01:48.5]} 18... Qg7 {[%clk 0:01:38.3]} 19. Rdh1 {[%clk 0:01:36.4]}
19... Qg2 {[%clk 0:01:29.4]} 20. Na4 {[%clk 0:00:50.7]} 20... Rd8 {[%clk
0:01:20.9]} 21. Bd3 {[%clk 0:00:29.5]} 21... Qxf2 {[%clk 0:01:14.6]} 22. Kb1
{[%clk 0:00:22.6]} 22... Qxe3 {[%clk 0:01:11.3]} 23. Rg8 {[%clk 0:00:20.2]}
23... Qf3 {[%clk 0:00:51.7]} 24. Rhg1 {[%clk 0:00:18.6]} 24... Ne6 {[%clk
0:00:48.3]} 25. R8g6 {[%clk 0:00:16.8]} 25... Rf8 {[%clk 0:00:41.3]} 26. Nac3
{[%clk 0:00:16.5]} 26... Nf4 {[%clk 0:00:25.9]} 27. Nxf4 {[%clk 0:00:16.2]}
27... Qxf4 {[%clk 0:00:25.5]} 28. Ne2 {[%clk 0:00:16.5]} 28... Qe3 {[%clk
0:00:24.4]} 29. Rg7+ {[%clk 0:00:15.9]} 29... Kb6 {[%clk 0:00:24.3]} 30. a3
{[%clk 0:00:15.8]} 30... f5 {[%clk 0:00:23.4]} 31. Rd7 {[%clk 0:00:15]} 31...
Qe6 {[%clk 0:00:10.9]} 32. Rgg7 {[%clk 0:00:14.2]} 32... Rb8 {[%clk 0:00:11.3]}
33. Rdf7 {[%clk 0:00:12.1]} 33... f4 {[%clk 0:00:10.8]} 34. Nxf4 {[%clk
0:00:10.7]} 34... Qe1+ {[%clk 0:00:10]} 35. Ka2 {[%clk 0:00:10.5]} 35... Bxf4
{[%clk 0:00:10.5]} 36. Rxf4 {[%clk 0:00:10.3]} 36... Qe3 {[%clk 0:00:10.9]} 37.
Rgg4 {[%clk 0:00:09.9]} 37... Rh8 {[%clk 0:00:09.7]} 38. Rf7 {[%clk 0:00:09.6]}
38... Qe6 {[%clk 0:00:09.1]} 39. Rgg7 {[%clk 0:00:09.3]} 39... Rb8 {[%clk
0:00:10]} 40. c3 {[%clk 0:00:09.2]} 40... Qe3 {[%clk 0:00:10.4]} 41. Bc2 {[%clk
0:00:09.4]} 41... Qd2 {[%clk 0:00:10.9]} 42. Bb3 {[%clk 0:00:09.7]} 42... a5
{[%clk 0:00:09.1]} 43. a4 {[%clk 0:00:10]} 43... Ka6 {[%clk 0:00:08.9]} 44. Re7
{[%clk 0:00:09.1]} 44... Qf2 {[%clk 0:00:08.6]} 45. Rgf7 {[%clk 0:00:08.6]}
45... Qd2 {[%clk 0:00:08.4]} 46. Rd7 {[%clk 0:00:07.9]} 46... Kb6 {[%clk
0:00:08.6]} 47. Rfe7 {[%clk 0:00:07.4]} 47... Qd3 {[%clk 0:00:08.9]} 48. Rf7
{[%clk 0:00:07.1]} 48... Qa6 {[%clk 0:00:09.4]} 49. Rfe7 {[%clk 0:00:07.3]}
49... Rf8 {[%clk 0:00:06.7]} 50. Rh7 {[%clk 0:00:07]} 50... Rf2 {[%clk
0:00:06.5]} 51. Rhg7 {[%clk 0:00:07.4]} 51... Qa8 {[%clk 0:00:05.9]} 52. Rh7
{[%clk 0:00:06.9]} 52... Qc8 {[%clk 0:00:06.4]} 53. Rhg7 {[%clk 0:00:06.6]}
53... Qb8 {[%clk 0:00:06.1]} 54. Rde7 {[%clk 0:00:06.5]} 54... Ka6 {[%clk
0:00:06.3]} 55. Rh7 {[%clk 0:00:06.2]} 55... Qa8 {[%clk 0:00:05.1]} 56. Rhg7
{[%clk 0:00:06.6]} 56... Qc8 {[%clk 0:00:05]} 57. Rh7 {[%clk 0:00:07]} 57... Qb8
{[%clk 0:00:05.6]} 58. Rhg7 {[%clk 0:00:07.4]} 58... Qh2 {[%clk 0:00:05.4]} 59.
Rxb7 {[%clk 0:00:06.2]} 59... Rxb2+ {[%clk 0:00:05.7]} 60. Ka3 {[%clk
0:00:06.7]} 60... c5 {[%clk 0:00:02.1]} 61. Ra7+ {[%clk 0:00:06.9]} 61... Kb6
{[%clk 0:00:02.6]} 62. Rgb7+ {[%clk 0:00:05.9]} 62... Kc6 {[%clk 0:00:03.1]} 63.
Rc7+ {[%clk 0:00:06.3]} 63... Kd6 {[%clk 0:00:03.2]} 64. Rd7+ {[%clk 0:00:06.5]}
64... Ke6 {[%clk 0:00:03.5]} 65. Bxd5+ {[%clk 0:00:06.8]} 65... Kf6 {[%clk
0:00:02.7]} 66. Rf7+ {[%clk 0:00:07]} 66... Kg5 {[%clk 0:00:03.2]} 67. Rg7+
{[%clk 0:00:07.3]} 67... Kf4 {[%clk 0:00:03.8]} 68. Raf7+ {[%clk 0:00:06.6]}
68... Ke3 {[%clk 0:00:04.4]} 69. Rf3+ {[%clk 0:00:06.4]} 69... Kd2 {[%clk
0:00:03.1]} 70. Kxb2 {[%clk 0:00:06.3]} 70... Kd1+ {[%clk 0:00:03.1]} 71. Kb3
{[%clk 0:00:06]} 71... Qc2+ {[%clk 0:00:02.6]} 72. Kc4 {[%clk 0:00:06.5]} 72...
cxd4 {[%clk 0:00:02.8]} 73. Rg1+ {[%clk 0:00:05.5]} 1-0